[Event "FIDE WCCC Open-08 2024"]
[Site "Montesilvano"]
[Date "2024.11.23"]
[Round "8.11"]
[White "Stankowski, Wiktor"]
[Black "Morozevich, Kirill Aleks"]
[Result "0-1"]
[ECO "C54"]
[WhiteElo "1617"]
[BlackElo "1484"]
[Annotator "NA RC"]
[PlyCount "148"]
[EventDate "2024.11.18"]
[EventType "swiss"]
[EventCountry "ITA"]
[SourceTitle "playchess.com"]
[Source "ChessBase"]
[SourceQuality "1"]
[TimeControl "5400+30"]

1. e4 {[%emt 0:00:02]} e5 {[%emt 0:00:15]} 2. Bc4 {[%emt 0:00:08]} Nf6 {[%emt 0:00:33]} 3. d3 {[%emt 0:00:35]} Nc6 {[%emt 0:00:12]} 4. Nf3 {[%emt 0:01:16]} Bc5 {[%emt 0:01:20]} 5. Bb3 {[%emt 0:02:24]} d6 {[%emt 0:01:41]} 6. c3 {[%emt 0:00:42]} h6 {[%emt 0:05:32]} 7. O-O {[%emt 0:02:45]} O-O {[%emt 0:00:30]} 8. Nbd2 {[%emt 0:01:10]} Be6 {[%emt 0:03:01]} 9. h3 {[%emt 0:08:03]} Qd7 {[%emt 1:21:56]} 10. Kh2 {[%emt 0:13:27]} Qe7 {[%emt 0:00:00]} 11. Qe2 {[%emt 0:11:12]} Nh5 {[%emt 0:00:00]} 12. Nxe5 {[%emt 0:08:23]} Nxe5 {[%emt 0:00:00]} 13. Qxh5 {[%emt 0:02:32]} Nxd3 {[%emt 0:00:00]} 14. f4 {[%emt 0:07:43]} Bxb3 {[%emt 0:00:00]} 15. axb3 {[%emt 0:03:33]} Nxc1 {[%emt 0:00:00]} 16. Raxc1 {[%emt 0:03:21]} Be3 {[%emt 0:00:00]} 17. Rcd1 {[%emt 0:06:46]} Bxd2 {[%emt 0:00:00]} 18. Rxd2 {[%emt 0:00:14]} Qxe4 {[%emt 0:00:00]} 19. f5 {[%emt 0:04:23]} Qe5+ {[%emt 0:00:00]} 20. Kg1 {[%emt 0:02:27]} Rae8 {[%emt 0:00:00]} 21. g4 {[%emt 0:04:38]} Qe3+ {[%emt 0:00:00]} 22. Rdf2 {[%emt 0:00:21]} Re5 {[%emt 0:00:00]} 23. Qh4 {[%emt 0:02:23]} f6 {[%emt 0:00:00]} 24. Kh2 {[%emt 0:03:13]} Rfe8 {[%emt 0:00:00]} 25. Qg3 {[%emt 0:00:58]} Qb6 {[%emt 0:00:00]} 26. h4 {[%emt 0:01:45]} Re3 {[%emt 0:00:00]} 27. Qg2 {[%emt 0:01:45]} R3e4 {[%emt 0:00:00]} 28. Qg3 {[%emt 0:01:07]} Qxb3 {[%emt 0:00:00]} 29. g5 {[%emt 0:00:53]} Qc4 {[%emt 0:00:00]} 30. Rf4 {[%emt 0:00:54]} Rxf4 {[%emt 0:00:00]} 31. Rxf4 {[%emt 0:00:24]} Re2+ {[%emt 0:00:00]} 32. Kh3 {[%emt 0:00:16]} Qf7 {[%emt 0:00:00]} 33. gxh6 {[%emt 0:00:20]} Kh7 {[%emt 0:00:00]} 34. hxg7 {[%emt 0:03:17]} Qxg7 {[%emt 0:00:00]} 35. Qxg7+ {[%emt 0:00:09]} Kxg7 {[%emt 0:00:00]} 36. Rg4+ {[%emt 0:00:08]} Kf7 {[%emt 0:00:00]} 37. h5 {[%emt 0:00:56]} Re5 {[%emt 0:00:00]} 38. Rf4 {[%emt 0:01:42]} Kg7 {[%emt 0:00:00]} 39. Kh4 {[%emt 0:00:45]} Kh6 {[%emt 0:00:00]} 40. Ra4 {[%emt 0:00:53]} Rxf5 {[%emt 0:00:00]} 41. Rxa7 {[%emt 0:00:08]} Rxh5+ {[%emt 0:00:00]} 42. Kg4 {[%emt 0:00:09]} Rb5 {[%emt 0:00:00]} 43. b4 {[%emt 0:00:16]} Kg6 {[%emt 0:00:00]} 44. Kf4 {[%emt 0:00:11]} Kf7 {[%emt 0:00:00]} 45. Ke4 {[%emt 0:00:24]} Ke6 {[%emt 0:00:00]} 46. Kd4 {[%emt 0:00:06]} f5 {[%emt 0:00:00]} 47. Kc4 {[%emt 0:00:10]} Rb6 {[%emt 0:00:00]} 48. Kd4 {[%emt 0:00:20]} Kf6 {[%emt 0:00:00]} 49. Kd5 {[%emt 0:00:20]} Rb5+ {[%emt 0:00:00]} 50. Kc4 {[%emt 0:00:06]} c6 {[%emt 0:00:00]} 51. Kb3 {[%emt 0:00:19]} Ke5 {[%emt 0:00:00]} 52. c4 {[%emt 0:00:14]} Rb6 {[%emt 0:00:00]} 53. Ka4 {[%emt 0:00:12]} Ra6+ {[%emt 0:00:00]} 54. Rxa6 {[%emt 0:00:07]} bxa6 {[%emt 0:00:00]} 55. Ka5 {[%emt 0:00:09]} f4 {[%emt 0:00:00]} 56. Kxa6 {[%emt 0:00:04]} f3 {[%emt 0:00:00]} 57. b5 {[%emt 0:00:06]} cxb5 {[%emt 0:00:00]} 58. cxb5 {[%emt 0:00:05]} f2 {[%emt 0:00:00]} 59. b6 {[%emt 0:00:10]} f1=Q+ {[%emt 0:00:00]} 60. Ka7 {[%emt 0:00:05]} Qa1+ {[%emt 0:00:00]} 61. Kb8 {[%emt 0:00:19]} d5 {[%emt 0:00:00]} 62. b7 {[%emt 0:00:06]} d4 {[%emt 0:00:00]} 63. Kc8 {[%emt 0:00:09]} Qa6 {[%emt 0:00:00]} 64. Kc7 {[%emt 0:00:06]} d3 {[%emt 0:00:00]} 65. b8=N {[%emt 0:00:18]} Qa7+ {[%emt 0:00:00]} 66. Kc8 {[%emt 0:00:07]} Qxb8+ {[%emt 0:00:00]} 67. Kxb8 {[%emt 0:00:05]} d2 {[%emt 0:00:00]} 68. Ka8 {[%emt 0:00:06]} d1=Q {[%emt 0:00:00]} 69. Kb7 {[%emt 0:00:08]} Kd6 {[%emt 0:00:00]} 70. Kc8 {[%emt 0:00:05]} Qc2+ {[%emt 0:00:00]} 71. Kb7 {[%emt 0:00:07]} Qc6+ {[%emt 0:00:00]} 72. Ka7 {[%emt 0:00:08]} Qb5 {[%emt 0:00:00]} 73. Ka8 {[%emt 0:00:07]} Kc7 {[%emt 0:00:00]} 74. Ka7 {[%emt 0:00:07]} Qb7# {[%emt 0:00:00]} 0-1

[Event "FIDE WCCC Open-08 2024"]
[Site "Montesilvano"]
[Date "2024.11.23"]
[Round "8.12"]
[White "Wang, Yihan(Ah)"]
[Black "Hu, Junyan"]
[Result "0-1"]
[ECO "B22"]
[WhiteElo "1630"]
[BlackElo "1924"]
[Annotator "RC"]
[PlyCount "120"]
[EventDate "2024.11.18"]
[EventType "swiss"]
[EventCountry "ITA"]
[SourceTitle "playchess.com"]
[Source "ChessBase"]
[SourceQuality "1"]
[TimeControl "5400+30"]

1. e4 {[%emt 0:00:06]} c5 {[%emt 0:00:08]} 2. c3 {[%emt 0:00:07]} d5 {[%emt 0:00:11]} 3. exd5 {[%emt 0:00:07]} Qxd5 {[%emt 0:00:04]} 4. d4 {[%emt 0:00:06]} Nf6 {[%emt 0:00:09]} 5. Nf3 {[%emt 0:00:43]} e6 {[%emt 0:00:18]} 6. Be2 {[%emt 0:01:03]} Nc6 {[%emt 0:00:50]} 7. Be3 {[%emt 0:01:03]} cxd4 {[%emt 0:00:43]} 8. cxd4 {[%emt 0:03:02]} Be7 {[%emt 0:00:45]} 9. Nc3 {[%emt 0:02:20]} Qd6 {[%emt 0:00:50]} 10. O-O {[%emt 0:04:30]} O-O {[%emt 0:00:21]} 11. Qb3 {[%emt 0:01:21]} b6 {[%emt 0:03:17]} 12. Rfd1 {[%emt 0:14:13]} Bb7 {[%emt 0:01:25]} 13. Rac1 {[%emt 0:02:55]} Na5 {[%emt 0:05:07]} 14. Qc2 {[%emt 0:06:33]} Rac8 {[%emt 0:03:20]} 15. Ne5 {[%emt 0:05:57]} Nd5 {[%emt 0:02:51]} 16. Qd2 {[%emt 0:08:23]} Nxc3 {[%emt 0:02:46]} 17. bxc3 {[%emt 0:04:43]} f6 {[%emt 0:01:18]} 18. Nf3 {[%emt 0:03:33]} Nc4 {[%emt 0:00:15]} 19. Bxc4 {[%emt 0:02:35]} Rxc4 {[%emt 0:00:35]} 20. Bf4 {[%emt 0:03:39]} Qd7 {[%emt 0:04:22]} 21. Qe2 {[%emt 0:03:16]} Rfc8 {[%emt 0:01:27]} 22. Qe3 {[%emt 0:05:52]} Bd5 {[%emt 0:02:10]} 23. Nd2 {[%emt 0:06:26]} R4c6 {[%emt 0:00:54]} 24. Qd3 {[%emt 0:03:45]} Bxa2 {[%emt 0:02:52]} 25. Qb5 {[%emt 0:03:39]} Bd5 {[%emt 0:10:40]} 26. c4 {[%emt 0:04:38]} Qb7 {[%emt 0:00:18]} 27. Rc3 {[%emt 0:03:21]} a6 {[%emt 0:07:54]} 28. Qb3 {[%emt 0:00:55]} a5 {[%emt 0:01:37]} 29. Re3 {[%emt 0:03:19]} Bxc4 {[%emt 0:03:08]} 30. Nxc4 {[%emt 0:00:18]} Rxc4 {[%emt 0:00:09]} 31. Rxe6 {[%emt 0:00:07]} Bb4 {[%emt 0:04:21]} 32. Re8+ {[%emt 0:02:07]} Rxe8 {[%emt 0:00:57]} 33. Qxc4+ {[%emt 0:00:08]} Qf7 {[%emt 0:00:42]} 34. Qb5 {[%emt 0:01:12]} Qe6 {[%emt 0:04:59]} 35. h3 {[%emt 0:00:40]} Qe2 {[%emt 0:05:36]} 36. Qxe2 {[%emt 0:00:36]} Rxe2 {[%emt 0:00:02]} 37. d5 {[%emt 0:00:07]} Re7 {[%emt 0:00:45]} 38. d6 {[%emt 0:01:00]} Rd7 {[%emt 0:00:24]} 39. Kf1 {[%emt 0:00:06]} Kf7 {[%emt 0:01:11]} 40. g4 {[%emt 0:00:43]} Ke6 {[%emt 0:01:43]} 41. Rb1 {[%emt 0:00:29]} Kd5 {[%emt 0:02:08]} 42. Rd1+ {[%emt 0:00:34]} Kc6 {[%emt 0:00:02]} 43. Rc1+ {[%emt 0:00:13]} Bc5 {[%emt 0:00:52]} 44. Ke2 {[%emt 0:00:33]} Rd8 {[%emt 0:01:47]} 45. Kf3 {[%emt 0:00:41]} Re8 {[%emt 0:00:58]} 46. Rd1 {[%emt 0:00:20]} Kd7 {[%emt 0:00:32]} 47. h4 {[%emt 0:00:39]} a4 {[%emt 0:00:54]} 48. Ra1 {[%emt 0:00:31]} a3 {[%emt 0:00:13]} 49. Bc1 {[%emt 0:00:35]} Ra8 {[%emt 0:00:55]} 50. Ke4 {[%emt 0:00:33]} Ra4+ {[%emt 0:00:30]} 51. Kf3 {[%emt 0:00:14]} b5 {[%emt 0:00:43]} 52. Ke2 {[%emt 0:00:11]} b4 {[%emt 0:00:51]} 53. Kd3 {[%emt 0:00:11]} b3 {[%emt 0:00:45]} 54. Kc3 {[%emt 0:00:11]} Bd4+ {[%emt 0:00:46]} 55. Kxb3 {[%emt 0:00:09]} Bxa1 {[%emt 0:00:03]} 56. Kxa4 {[%emt 0:00:31]} Bb2 {[%emt 0:00:03]} 57. Bxb2 {[%emt 0:00:18]} axb2 {[%emt 0:00:06]} 58. Ka5 {[%emt 0:00:05]} b1=Q {[%emt 0:00:06]} 59. Ka6 {[%emt 0:00:09]} Kc6 {[%emt 0:00:05]} 60. Ka5 {[%emt 0:00:04]} Qb5# {[%emt 0:00:07]} 0-1

[Event "FIDE WCCC Open-08 2024"]
[Site "Montesilvano"]
[Date "2024.11.23"]
[Round "8.13"]
[White "Rajabov, Abdurahmon"]
[Black "Zhang, Yangming"]
[Result "1-0"]
[ECO "B34"]
[WhiteElo "1515"]
[BlackElo "1770"]
[Annotator "NA RC"]
[PlyCount "43"]
[EventDate "2024.11.18"]
[EventType "swiss"]
[EventCountry "ITA"]
[SourceTitle "playchess.com"]
[Source "ChessBase"]
[SourceQuality "1"]
[TimeControl "5400+30"]

1. e4 {[%emt 0:00:55]} c5 {[%emt 0:00:21]} 2. Nf3 {[%emt 0:00:08]} Nc6 {[%emt 0:00:41]} 3. Nc3 {[%emt 0:01:14]} g6 {[%emt 0:00:45]} 4. d4 {[%emt 0:00:03]} cxd4 {[%emt 0:01:20]} 5. Nxd4 {[%emt 0:00:05]} Bg7 {[%emt 0:01:18]} 6. Be3 {[%emt 0:00:09]} Nf6 {[%emt 0:00:18]} 7. Nxc6 {[%emt 0:00:26]} bxc6 {[%emt 0:02:51]} 8. e5 {[%emt 0:00:12]} Ng8 {[%emt 0:01:13]} 9. f4 {[%emt 0:00:07]} d6 {[%emt 0:01:02]} 10. Bc4 {[%emt 0:00:06]} d5 {[%emt 0:01:20]} 11. Bb3 {[%emt 0:02:39]} Ba6 {[%emt 0:00:59]} 12. Ba4 {[%emt 0:00:22]} Rc8 {[%emt 0:08:41]} 13. Qxd5 {[%emt 0:01:32]} Qxd5 {[%emt 0:03:34]} 14. Nxd5 {[%emt 0:00:17]} Bb5 {[%emt 0:00:51]} 15. Bxb5 {[%emt 0:00:09]} cxb5 {[%emt 0:00:09]} 16. O-O-O {[%emt 0:00:04]} e6 {[%emt 0:00:34]} 17. Nc3 {[%emt 0:00:19]} a6 {[%emt 0:01:32]} 18. Ne4 {[%emt 0:00:10]} Rc6 {[%emt 0:00:45]} 19. Bc5 {[%emt 0:01:15]} Ne7 {[%emt 0:04:35]} 20. Nd6+ {[%emt 0:00:07]} Kf8 {[%emt 0:00:11]} 21. Nb7 {[%emt 0:00:05]} Rxc5 {[%emt 0:03:24]} 22. Rd8# {[%emt 0:00:01]} 1-0

[Event "FIDE WCCC Open-08 2024"]
[Site "Montesilvano"]
[Date "2024.11.23"]
[Round "8.14"]
[White "Alloussi, Arian"]
[Black "Morozov, Arkhip"]
[Result "1/2-1/2"]
[ECO "C42"]
[WhiteElo "1745"]
[BlackElo "1687"]
[Annotator "NA RC"]
[PlyCount "73"]
[EventDate "2024.11.18"]
[EventType "swiss"]
[EventCountry "ITA"]
[SourceTitle "playchess.com"]
[Source "ChessBase"]
[SourceQuality "1"]
[TimeControl "5400+30"]

1. e4 {[%emt 0:00:02]} e5 {[%emt 0:00:13]} 2. Nf3 {[%emt 0:00:06]} Nf6 {[%emt 0:00:15]} 3. Nxe5 {[%emt 0:00:16]} d6 {[%emt 0:00:12]} 4. Nf3 {[%emt 0:00:18]} Nxe4 {[%emt 0:00:11]} 5. Bd3 {[%emt 0:00:32]} Nf6 {[%emt 0:00:45]} 6. O-O {[%emt 0:00:59]} Be7 {[%emt 0:00:32]} 7. h3 {[%emt 0:00:30]} Nc6 {[%emt 0:00:58]} 8. c3 {[%emt 0:01:15]} O-O {[%emt 0:00:41]} 9. Bc2 {[%emt 0:00:47]} d5 {[%emt 0:00:54]} 10. d4 {[%emt 0:01:21]} h6 {[%emt 0:03:19]} 11. Re1 {[%emt 0:01:18]} Bd6 {[%emt 0:04:51]} 12. Ne5 {[%emt 0:02:37]} Re8 {[%emt 0:05:25]} 13. Bf4 {[%emt 0:01:38]} Ne7 {[%emt 0:03:17]} 14. Nd2 {[%emt 0:11:00]} Bf5 {[%emt 0:06:59]} 15. Nf1 {[%emt 0:08:51]} Bxc2 {[%emt 0:10:08]} 16. Qxc2 {[%emt 0:00:32]} Nd7 {[%emt 0:02:37]} 17. Ng3 {[%emt 0:04:32]} f6 {[%emt 0:09:31]} 18. Ng6 {[%emt 0:06:29]} Bxf4 {[%emt 0:00:19]} 19. Nxf4 {[%emt 0:00:28]} Nf8 {[%emt 0:00:52]} 20. Nf5 {[%emt 0:03:10]} Nxf5 {[%emt 0:00:41]} 21. Qxf5 {[%emt 0:00:45]} c6 {[%emt 0:00:41]} 22. Qg4 {[%emt 0:07:16]} Qd7 {[%emt 0:02:26]} 23. Qxd7 {[%emt 0:05:53]} Nxd7 {[%emt 0:00:07]} 24. f3 {[%emt 0:01:02]} Kf7 {[%emt 0:00:23]} 25. Kf2 {[%emt 0:00:11]} Nf8 {[%emt 0:01:01]} 26. Nd3 {[%emt 0:01:10]} Nd7 {[%emt 0:03:03]} 27. b3 {[%emt 0:03:08]} Rxe1 {[%emt 0:01:57]} 28. Rxe1 {[%emt 0:00:09]} Re8 {[%emt 0:00:10]} 29. Rxe8 {[%emt 0:00:59]} Kxe8 {[%emt 0:00:24]} 30. Ke3 {[%emt 0:00:54]} Kf7 {[%emt 0:01:51]} 31. g4 {[%emt 0:02:38]} g6 {[%emt 0:06:05]} 32. h4 {[%emt 0:02:06]} g5 {[%emt 0:02:21]} 33. hxg5 {[%emt 0:01:57]} hxg5 {[%emt 0:00:08]} 34. f4 {[%emt 0:02:51]} Ke6 {[%emt 0:01:36]} 35. b4 {[%emt 0:06:37]} b5 {[%emt 0:02:53]} 36. Kf3 {[%emt 0:06:08]} Kd6 {[%emt 0:00:36]} 37. Ke3 {[%emt 0:00:50]} 1/2-1/2

[Event "FIDE WCCC Open-08 2024"]
[Site "Montesilvano"]
[Date "2024.11.23"]
[Round "8.15"]
[White "Pera, Mikolaj"]
[Black "Su, Milo"]
[Result "1/2-1/2"]
[ECO "B45"]
[WhiteElo "1446"]
[BlackElo "1696"]
[Annotator "NA RC"]
[PlyCount "92"]
[EventDate "2024.11.18"]
[EventType "swiss"]
[EventCountry "ITA"]
[SourceTitle "playchess.com"]
[Source "ChessBase"]
[SourceQuality "1"]
[TimeControl "5400+30"]

1. e4 {[%emt 0:00:03]} c5 {[%emt 0:00:11]} 2. Nf3 {[%emt 0:00:19]} Nc6 {[%emt 0:00:13]} 3. d4 {[%emt 0:00:10]} cxd4 {[%emt 0:00:19]} 4. Nxd4 {[%emt 0:00:08]} Nf6 {[%emt 0:00:20]} 5. Nc3 {[%emt 0:00:11]} e6 {[%emt 0:00:15]} 6. Ndb5 {[%emt 0:00:14]} Bc5 {[%emt 0:00:37]} 7. Nd6+ {[%emt 0:02:08]} Ke7 {[%emt 0:00:22]} 8. Bf4 {[%emt 0:02:38]} e5 {[%emt 0:00:44]} 9. Nf5+ {[%emt 0:00:41]} Kf8 {[%emt 0:00:30]} 10. Be3 {[%emt 0:05:48]} Bb4 {[%emt 0:01:32]} 11. Nd6 {[%emt 0:06:55]} Qa5 {[%emt 0:08:05]} 12. Qd3 {[%emt 0:07:20]} Kg8 {[%emt 0:24:44]} 13. Nc4 {[%emt 0:05:05]} Qc7 {[%emt 0:00:45]} 14. Be2 {[%emt 0:01:02]} b6 {[%emt 0:12:31]} 15. O-O {[%emt 0:05:19]} Ba6 {[%emt 0:01:39]} 16. Nd5 {[%emt 0:08:54]} Nxd5 {[%emt 0:02:55]} 17. Qxd5 {[%emt 0:06:17]} Rc8 {[%emt 0:01:51]} 18. Nxe5 {[%emt 0:15:25]} Qxe5 {[%emt 0:03:58]} 19. Bxa6 {[%emt 0:02:41]} Re8 {[%emt 0:05:03]} 20. Qxe5 {[%emt 0:03:57]} Nxe5 {[%emt 0:00:30]} 21. Bb5 {[%emt 0:04:26]} h5 {[%emt 0:02:01]} 22. f3 {[%emt 0:02:36]} Kh7 {[%emt 0:02:12]} 23. Rad1 {[%emt 0:00:53]} Rd8 {[%emt 0:02:24]} 24. Rd5 {[%emt 0:00:18]} Rhe8 {[%emt 0:04:43]} 25. Rfd1 {[%emt 0:01:31]} f5 {[%emt 0:03:31]} 26. Bd4 {[%emt 0:18:31]} Nc6 {[%emt 0:01:51]} 27. Rxf5 {[%emt 0:00:00]} Nxd4 {[%emt 0:00:20]} 28. Rxd4 {[%emt 0:00:00]} Bc5 {[%emt 0:00:51]} 29. Rxh5+ {[%emt 0:00:00]} Kg6 {[%emt 0:00:17]} 30. Rhd5 {[%emt 0:00:00]} Re5 {[%emt 0:02:51]} 31. c3 {[%emt 0:00:00]} d6 {[%emt 0:01:32]} 32. Rxc5 {[%emt 0:00:00]} bxc5 {[%emt 0:01:11]} 33. Rd2 {[%emt 0:00:00]} Kf6 {[%emt 0:01:02]} 34. Bc6 {[%emt 0:00:00]} g5 {[%emt 0:01:32]} 35. Bd5 {[%emt 0:00:00]} Rb8 {[%emt 0:00:48]} 36. Kf2 {[%emt 0:00:00]} Rb6 {[%emt 0:00:47]} 37. Kg3 {[%emt 0:00:00]} Re8 {[%emt 0:00:36]} 38. Kf2 {[%emt 0:00:00]} Ke5 {[%emt 0:00:42]} 39. Ke3 {[%emt 0:00:00]} Rf8 {[%emt 0:00:56]} 40. h3 {[%emt 0:00:10]} Rf6 {[%emt 0:00:50]} 41. Rc2 {[%emt 0:00:21]} Rb8 {[%emt 0:00:52]} 42. Rd2 {[%emt 0:00:17]} Rbf8 {[%emt 0:00:46]} 43. Rd1 {[%emt 0:00:48]} a5 {[%emt 0:00:46]} 44. Rd2 {[%emt 0:00:39]} Rb8 {[%emt 0:00:29]} 45. Bc4 {[%emt 0:00:41]} Rff8 {[%emt 0:02:03]} 46. Rd5+ {[%emt 0:00:21]} Kf6 {[%emt 0:00:07]} 1/2-1/2

[Event "FIDE WCCC Open-08 2024"]
[Site "Montesilvano"]
[Date "2024.11.23"]
[Round "8.16"]
[White "Jevglevski, Lev"]
[Black "Charyyev Charyhekim"]
[Result "1/2-1/2"]
[ECO "C41"]
[WhiteElo "1602"]
[BlackElo "1589"]
[Annotator "NA RC"]
[PlyCount "123"]
[EventDate "2024.11.18"]
[EventType "swiss"]
[EventCountry "ITA"]
[SourceTitle "playchess.com"]
[Source "ChessBase"]
[SourceQuality "1"]
[TimeControl "5400+30"]

1. e4 {[%emt 0:01:28]} d6 {[%emt 0:00:14]} 2. d4 {[%emt 0:00:13]} Nf6 {[%emt 0:00:25]} 3. Nc3 {[%emt 0:00:10]} Nbd7 {[%emt 0:00:26]} 4. Nf3 {[%emt 0:00:27]} e5 {[%emt 0:00:11]} 5. Bc4 {[%emt 0:00:09]} Be7 {[%emt 0:00:29]} 6. O-O {[%emt 0:00:39]} c6 {[%emt 0:00:42]} 7. a4 {[%emt 0:00:10]} O-O {[%emt 0:00:27]} 8. Re1 {[%emt 0:01:25]} h6 {[%emt 0:03:29]} 9. h3 {[%emt 0:01:30]} Re8 {[%emt 0:01:40]} 10. Be3 {[%emt 0:00:52]} Bf8 {[%emt 0:06:10]} 11. Qe2 {[%emt 1:28:57]} a5 {[%emt 0:05:12]} 12. Rad1 {[%emt 0:00:00]} Qc7 {[%emt 0:08:28]} 13. Qd3 {[%emt 0:00:00]} exd4 {[%emt 0:03:24]} 14. Qxd4 {[%emt 0:00:00]} Ne5 {[%emt 0:04:14]} 15. Be2 {[%emt 0:00:00]} Ng6 {[%emt 0:14:19]} 16. Nd2 {[%emt 0:00:00]} c5 {[%emt 0:11:37]} 17. Qd3 {[%emt 0:00:00]} Ne5 {[%emt 0:08:12]} 18. Nb5 {[%emt 0:00:00]} Nxd3 {[%emt 0:01:40]} 19. Nxc7 {[%emt 0:00:00]} Nxe1 {[%emt 0:00:29]} 20. Rxe1 {[%emt 0:00:00]} Bd7 {[%emt 0:01:39]} 21. Nxa8 {[%emt 0:00:00]} Rxa8 {[%emt 0:00:22]} 22. b3 {[%emt 0:00:00]} Re8 {[%emt 0:02:10]} 23. Bd3 {[%emt 0:00:00]} d5 {[%emt 0:06:40]} 24. exd5 {[%emt 0:00:00]} Nxd5 {[%emt 0:00:54]} 25. Nc4 {[%emt 0:00:00]} Nb4 {[%emt 0:03:13]} 26. Nxa5 {[%emt 0:00:00]} Nxd3 {[%emt 0:01:53]} 27. cxd3 {[%emt 0:08:00]} b5 {[%emt 0:01:34]} 28. axb5 {[%emt 0:00:00]} Bxb5 {[%emt 0:00:29]} 29. Rc1 {[%emt 0:00:00]} Bxd3 {[%emt 0:02:14]} 30. Bxc5 {[%emt 0:00:00]} Rc8 {[%emt 0:00:23]} 31. Be3 {[%emt 0:00:00]} Rxc1+ {[%emt 0:03:44]} 32. Bxc1 {[%emt 0:00:00]} Bc5 {[%emt 0:05:10]} 33. Be3 {[%emt 0:00:00]} Bb4 {[%emt 0:00:35]} 34. Nc6 {[%emt 0:00:00]} Bc3 {[%emt 0:01:25]} 35. Bc5 {[%emt 0:00:00]} Be4 {[%emt 0:03:47]} 36. Ne7+ {[%emt 0:00:00]} Kh7 {[%emt 0:00:00]} 37. b4 {[%emt 0:00:00]} Bf6 {[%emt 0:00:00]} 38. Nc8 {[%emt 0:00:00]} Bd3 {[%emt 0:00:00]} 39. Nd6 {[%emt 0:00:00]} Kg6 {[%emt 0:00:13]} 40. f4 {[%emt 0:00:00]} Be7 {[%emt 0:00:50]} 41. Nc8 {[%emt 0:00:00]} Bd8 {[%emt 0:00:37]} 42. Kf2 {[%emt 0:00:00]} Kf6 {[%emt 0:00:56]} 43. Bd4+ {[%emt 0:00:00]} Ke6 {[%emt 0:00:29]} 44. Nb6 {[%emt 0:00:00]} Bxb6 {[%emt 0:00:25]} 45. Bxb6 {[%emt 0:00:00]} Bb5 {[%emt 0:00:38]} 46. Bc5 {[%emt 0:00:00]} Kf5 {[%emt 0:00:21]} 47. Ke3 {[%emt 0:00:00]} Bf1 {[%emt 0:00:14]} 48. g4+ {[%emt 0:00:00]} Kg6 {[%emt 0:00:28]} 49. h4 {[%emt 0:00:00]} h5 {[%emt 0:00:57]} 50. g5 {[%emt 0:00:00]} Kf5 {[%emt 0:00:25]} 51. Be7 {[%emt 0:00:00]} Ke6 {[%emt 0:00:29]} 52. Bc5 {[%emt 0:00:00]} g6 {[%emt 0:00:23]} 53. Bd4 {[%emt 0:00:00]} Kd5 {[%emt 0:00:19]} 54. Bc3 {[%emt 0:00:00]} Bb5 {[%emt 0:00:28]} 55. Be1 {[%emt 0:00:00]} Bd7 {[%emt 0:00:31]} 56. Kd3 {[%emt 0:00:00]} Be6 {[%emt 0:00:16]} 57. Bf2 {[%emt 0:00:00]} Kc6 {[%emt 0:00:13]} 58. Kd4 {[%emt 0:00:00]} Kb5 {[%emt 0:00:15]} 59. Be1 {[%emt 0:00:00]} Bc4 {[%emt 0:00:36]} 60. f5 {[%emt 0:00:00]} Ba2 {[%emt 0:00:34]} 61. Ke5 {[%emt 0:00:00]} Bb1 {[%emt 0:00:23]} 62. f6 {[%emt 0:00:00]} 1/2-1/2